[Event "*** Titled Tuesday Blitz"]
[Site "Chess.com"]
[Date "2020.05.05"]
[Round "7"]
[White "bolence16"]
[Black "Justinz"]
[Result "1-0"]
[WhiteElo "2170"]
[BlackElo "2324"]
[TimeControl "180+1"]
[EndTime "11:20:12 PDT"]
[Termination "bolence16 won by checkmate"]

1. e4 {[%clk 0:03:00.9]} 1... c5 {[%clk 0:02:59]} 2. Nf3 {[%clk 0:03:01.3]} 2...
d6 {[%clk 0:02:58.9]} 3. b4 {[%clk 0:03:01.4]} 3... cxb4 {[%clk 0:02:56.9]} 4.
d4 {[%clk 0:03:01.8]} 4... Nf6 {[%clk 0:02:56.4]} 5. Bd3 {[%clk 0:03:02]} 5...
e6 {[%clk 0:02:54.8]} 6. O-O {[%clk 0:03:02]} 6... Be7 {[%clk 0:02:54.6]} 7. a3
{[%clk 0:03:02.5]} 7... bxa3 {[%clk 0:02:53.8]} 8. Nxa3 {[%clk 0:03:02.8]} 8...
O-O {[%clk 0:02:52.9]} 9. Re1 {[%clk 0:03:02.9]} 9... a6 {[%clk 0:02:52.4]} 10.
c4 {[%clk 0:02:59.2]} 10... Re8 {[%clk 0:02:40.4]} 11. Bb2 {[%clk 0:02:58.2]}
11... Bf8 {[%clk 0:02:33.2]} 12. h3 {[%clk 0:02:55.1]} 12... Nc6 {[%clk
0:02:32.9]} 13. e5 {[%clk 0:02:33.1]} 13... dxe5 {[%clk 0:02:29.5]} 14. dxe5
{[%clk 0:02:32.6]} 14... Nd7 {[%clk 0:02:27.5]} 15. Qe2 {[%clk 0:02:29.2]} 15...
Nc5 {[%clk 0:02:23.9]} 16. Bc2 {[%clk 0:02:27.5]} 16... Rb8 {[%clk 0:02:08.8]}
17. Rad1 {[%clk 0:02:15.8]} 17... Qe7 {[%clk 0:02:08.5]} 18. Nd4 {[%clk
0:01:56.4]} 18... Nxd4 {[%clk 0:02:05.5]} 19. Rxd4 {[%clk 0:01:56.1]} 19... Rd8
{[%clk 0:02:00.8]} 20. Red1 {[%clk 0:01:45.5]} 20... Rxd4 {[%clk 0:01:55.7]} 21.
Rxd4 {[%clk 0:01:45.2]} 21... Bd7 {[%clk 0:01:55.4]} 22. Nb1 {[%clk 0:01:31.7]}
22... Bc6 {[%clk 0:01:54.9]} 23. Ba3 {[%clk 0:01:10.9]} 23... h6 {[%clk
0:01:29.5]} 24. Nc3 {[%clk 0:01:08]} 24... Qc7 {[%clk 0:01:17]} 25. Ne4 {[%clk
0:00:35.6]} 25... Qxe5 {[%clk 0:00:59.3]} 26. Bb2 {[%clk 0:00:23.4]} 26... Nxe4
{[%clk 0:00:57]} 27. Bxe4 {[%clk 0:00:23.4]} 27... Bxe4 {[%clk 0:00:56.6]} 28.
Rxe4 {[%clk 0:00:23.8]} 28... Qf5 {[%clk 0:00:45.2]} 29. Rg4 {[%clk 0:00:23.3]}
29... Rd8 {[%clk 0:00:40.5]} 30. Bd4 {[%clk 0:00:12.6]} 30... h5 {[%clk
0:00:25.5]} 31. Re4 {[%clk 0:00:12.5]} 31... f6 {[%clk 0:00:25.4]} 32. Kh2
{[%clk 0:00:10.7]} 32... e5 {[%clk 0:00:25.5]} 33. Bc3 {[%clk 0:00:09.3]} 33...
Bc5 {[%clk 0:00:24.4]} 34. f3 {[%clk 0:00:04.3]} 34... g5 {[%clk 0:00:23.3]} 35.
h4 {[%clk 0:00:03.6]} 35... gxh4 {[%clk 0:00:16.5]} 36. Rxh4 {[%clk 0:00:03.2]}
36... Kf7 {[%clk 0:00:16.6]} 37. Qe4 {[%clk 0:00:03]} 37... Qxe4 {[%clk
0:00:16]} 38. fxe4 {[%clk 0:00:03.7]} 38... Kg6 {[%clk 0:00:16]} 39. Rh3 {[%clk
0:00:03.7]} 39... Rd1 {[%clk 0:00:13.8]} 40. Rg3+ {[%clk 0:00:04.6]} 40... Kf7
{[%clk 0:00:13.3]} 41. Rf3 {[%clk 0:00:05.5]} 41... Ke6 {[%clk 0:00:12.7]} 42.
g4 {[%clk 0:00:05.7]} 42... hxg4 {[%clk 0:00:12.1]} 43. Rg3 {[%clk 0:00:06.6]}
43... Bd4 {[%clk 0:00:11.1]} 44. Bb4 {[%clk 0:00:06.1]} 44... Rb1 {[%clk
0:00:09.9]} 45. Bf8 {[%clk 0:00:05.8]} 45... Rb2+ {[%clk 0:00:09.8]} 46. Kh1
{[%clk 0:00:05.2]} 46... Rc2 {[%clk 0:00:09.8]} 47. Rxg4 {[%clk 0:00:04.8]}
47... Rxc4 {[%clk 0:00:10.2]} 48. Rh4 {[%clk 0:00:04.8]} 48... Be3 {[%clk
0:00:10.3]} 49. Rh3 {[%clk 0:00:04.7]} 49... Bf4 {[%clk 0:00:10.2]} 50. Rb3
{[%clk 0:00:04.7]} 50... b5 {[%clk 0:00:10.2]} 51. Kg2 {[%clk 0:00:05]} 51...
Rxe4 {[%clk 0:00:10.5]} 52. Ra3 {[%clk 0:00:05.6]} 52... Kf5 {[%clk 0:00:11.4]}
53. Rxa6 {[%clk 0:00:05.6]} 53... b4 {[%clk 0:00:11.4]} 54. Bg7 {[%clk
0:00:05.9]} 54... Bd2 {[%clk 0:00:11.3]} 55. Rxf6+ {[%clk 0:00:05.8]} 55... Kg5
{[%clk 0:00:11.5]} 56. Rb6 {[%clk 0:00:06.2]} 56... Bc3 {[%clk 0:00:11.5]} 57.
Rb5 {[%clk 0:00:06.4]} 57... Kf5 {[%clk 0:00:09.7]} 58. Kf3 {[%clk 0:00:06.8]}
58... Rc4 {[%clk 0:00:09]} 59. Ke3 {[%clk 0:00:05.9]} 59... Rh4 {[%clk
0:00:08.3]} 60. Kd3 {[%clk 0:00:06.2]} 60... Rh3+ {[%clk 0:00:08.4]} 61. Kc2
{[%clk 0:00:06.7]} 61... Kf4 {[%clk 0:00:07.8]} 62. Bf6 {[%clk 0:00:05.3]} 62...
e4 {[%clk 0:00:07.8]} 63. Bxc3 {[%clk 0:00:04.9]} 63... bxc3 {[%clk 0:00:08.7]}
64. Rd5 {[%clk 0:00:04.2]} 64... e3 {[%clk 0:00:07.7]} 65. Rd8 {[%clk
0:00:04.4]} 65... e2 {[%clk 0:00:07.4]} 66. Rf8+ {[%clk 0:00:04.6]} 66... Ke3
{[%clk 0:00:08.3]} 67. Re8+ {[%clk 0:00:04.8]} 67... Kf2 {[%clk 0:00:09.2]} 68.
Rf8+ {[%clk 0:00:05.2]} 68... Ke1 {[%clk 0:00:10.1]} 69. Rf7 {[%clk 0:00:04.1]}
69... Rh2 {[%clk 0:00:08.3]} 70. Ra7 {[%clk 0:00:04]} 70... Rf2 {[%clk
0:00:08.7]} 71. Ra1# {[%clk 0:00:04]} 1-0

[Event "*** Titled Tuesday Blitz"]
[Site "Chess.com"]
[Date "2020.05.05"]
[Round "7"]
[White "DrVelja"]
[Black "RubensCezila"]
[Result "1-0"]
[WhiteElo "2649"]
[BlackElo "2483"]
[TimeControl "180+1"]
[EndTime "11:20:20 PDT"]
[Termination "DrVelja won by resignation"]

1. e4 {[%clk 0:03:00.9]} 1... c6 {[%clk 0:03:00]} 2. d4 {[%clk 0:02:55.5]} 2...
d5 {[%clk 0:03:00.1]} 3. e5 {[%clk 0:02:53.4]} 3... Bf5 {[%clk 0:03:00.1]} 4.
Bd3 {[%clk 0:02:50.8]} 4... Bxd3 {[%clk 0:02:56.2]} 5. Qxd3 {[%clk 0:02:51.7]}
5... e6 {[%clk 0:02:54.1]} 6. Nf3 {[%clk 0:02:50.8]} 6... c5 {[%clk 0:02:48.1]}
7. c3 {[%clk 0:02:50.6]} 7... Nc6 {[%clk 0:02:48.2]} 8. O-O {[%clk 0:02:49.2]}
8... Qb6 {[%clk 0:02:48.3]} 9. Rd1 {[%clk 0:02:37.1]} 9... Rc8 {[%clk
0:02:47.6]} 10. Qe2 {[%clk 0:02:37]} 10... cxd4 {[%clk 0:02:33.7]} 11. cxd4
{[%clk 0:02:35.7]} 11... Na5 {[%clk 0:02:29.7]} 12. Nc3 {[%clk 0:02:28.9]} 12...
Nc4 {[%clk 0:02:25.4]} 13. b3 {[%clk 0:02:23.3]} 13... Na3 {[%clk 0:02:20.1]}
14. Bb2 {[%clk 0:02:17.7]} 14... Nh6 {[%clk 0:02:09.6]} 15. Rac1 {[%clk
0:02:14.6]} 15... Rc6 {[%clk 0:02:08.1]} 16. Na4 {[%clk 0:02:08.2]} 16... Qb5
{[%clk 0:02:07.1]} 17. Qd2 {[%clk 0:01:32.7]} 17... Bb4 {[%clk 0:01:58.8]} 18.
Rxc6 {[%clk 0:01:27.4]} 18... bxc6 {[%clk 0:01:52.5]} 19. Qc1 {[%clk 0:01:26.6]}
19... Nc4 {[%clk 0:01:50]} 20. Bc3 {[%clk 0:00:59.9]} 20... Ba3 {[%clk
0:01:43.8]} 21. Qg5 {[%clk 0:00:59.4]} 21... O-O {[%clk 0:01:41.4]} 22. Nc5
{[%clk 0:00:47.6]} 22... Bxc5 {[%clk 0:00:49.8]} 23. dxc5 {[%clk 0:00:48.5]}
23... Na5 {[%clk 0:00:50.1]} 24. Nd4 {[%clk 0:00:31.6]} 24... Qxc5 {[%clk
0:00:49.8]} 25. Qd2 {[%clk 0:00:32]} 25... Nb7 {[%clk 0:00:46.1]} 26. Bb4 {[%clk
0:00:31]} 26... Qb6 {[%clk 0:00:45.3]} 27. Bxf8 {[%clk 0:00:31.5]} 27... Kxf8
{[%clk 0:00:46.2]} 28. Rc1 {[%clk 0:00:30.9]} 28... c5 {[%clk 0:00:46.5]} 29.
Nf3 {[%clk 0:00:27.8]} 29... Nf5 {[%clk 0:00:45.7]} 30. Qd3 {[%clk 0:00:23.5]}
30... Kg8 {[%clk 0:00:43.6]} 31. h3 {[%clk 0:00:21.6]} 31... h6 {[%clk
0:00:31.4]} 32. Rc2 {[%clk 0:00:20.7]} 32... Na5 {[%clk 0:00:21.6]} 33. Qc3
{[%clk 0:00:20.4]} 33... Nb7 {[%clk 0:00:20.9]} 34. Kh2 {[%clk 0:00:17.1]} 34...
Ne7 {[%clk 0:00:20.7]} 35. Qd2 {[%clk 0:00:16.2]} 35... Nc6 {[%clk 0:00:20.7]}
36. Qe3 {[%clk 0:00:16.6]} 36... Qc7 {[%clk 0:00:20.6]} 37. Kg1 {[%clk
0:00:16.1]} 37... Qe7 {[%clk 0:00:20.5]} 38. h4 {[%clk 0:00:16.2]} 38... Nb4
{[%clk 0:00:20.5]} 39. Re2 {[%clk 0:00:10.6]} 39... d4 {[%clk 0:00:20.7]} 40.
Qe4 {[%clk 0:00:09.6]} 40... Nd5 {[%clk 0:00:21.3]} 41. Rc2 {[%clk 0:00:09.1]}
41... Nb4 {[%clk 0:00:20.5]} 42. Rd2 {[%clk 0:00:08]} 42... Nd5 {[%clk
0:00:20.7]} 43. Ne1 {[%clk 0:00:07.9]} 43... Qc7 {[%clk 0:00:19.5]} 44. Nd3
{[%clk 0:00:06.2]} 44... Nc3 {[%clk 0:00:19]} 45. Qf3 {[%clk 0:00:05.6]} 45...
Nd8 {[%clk 0:00:17.7]} 46. Rc2 {[%clk 0:00:05.7]} 46... Kh7 {[%clk 0:00:14.9]}
47. h5 {[%clk 0:00:05.5]} 47... Nc6 {[%clk 0:00:14.9]} 48. Qf4 {[%clk
0:00:05.6]} 48... Nd5 {[%clk 0:00:14]} 49. Qe4+ {[%clk 0:00:05.5]} 49... Kg8
{[%clk 0:00:12.3]} 50. Rxc5 {[%clk 0:00:06.4]} 50... Qd7 {[%clk 0:00:12.8]} 51.
f4 {[%clk 0:00:06]} 51... Ncb4 {[%clk 0:00:11.5]} 52. Nxb4 {[%clk 0:00:05.7]}
52... Nxb4 {[%clk 0:00:12.4]} 53. Qa8+ {[%clk 0:00:05.7]} 53... Kh7 {[%clk
0:00:12.3]} 54. Qe4+ {[%clk 0:00:06.6]} 54... Kg8 {[%clk 0:00:12.2]} 55. Rc4
{[%clk 0:00:07.5]} 55... Nd5 {[%clk 0:00:09.8]} 56. Qxd4 {[%clk 0:00:06.9]}
56... Qe7 {[%clk 0:00:08.4]} 57. Rc8+ {[%clk 0:00:06.9]} 57... Kh7 {[%clk
0:00:08.9]} 58. Qd3+ {[%clk 0:00:07.2]} 58... g6 {[%clk 0:00:09.3]} 59. hxg6+
{[%clk 0:00:08.1]} 59... fxg6 {[%clk 0:00:10.2]} 60. Qc4 {[%clk 0:00:08.6]}
60... Qh4 {[%clk 0:00:09.3]} 61. Qe4 {[%clk 0:00:07]} 61... Qxf4 {[%clk
0:00:06.5]} 62. Qxf4 {[%clk 0:00:06.7]} 62... Nxf4 {[%clk 0:00:06.5]} 63. Rc7+
{[%clk 0:00:07.6]} 63... Kg8 {[%clk 0:00:07.4]} 64. Rxa7 {[%clk 0:00:08.5]}
64... Nd3 {[%clk 0:00:07.4]} 65. a4 {[%clk 0:00:09]} 65... Nxe5 {[%clk
0:00:08.3]} 66. a5 {[%clk 0:00:09.9]} 1-0

[Event "*** Titled Tuesday Blitz"]
[Site "Chess.com"]
[Date "2020.05.05"]
[Round "7"]
[White "woodhy"]
[Black "Stewie_89"]
[Result "0-1"]
[WhiteElo "2422"]
[BlackElo "2638"]
[TimeControl "180+1"]
[EndTime "11:20:22 PDT"]
[Termination "Stewie_89 won by resignation"]

1. e4 {[%clk 0:03:00.9]} 1... Nf6 {[%clk 0:02:59.3]} 2. Nc3 {[%clk 0:02:58.1]}
2... d5 {[%clk 0:02:58.6]} 3. exd5 {[%clk 0:02:58.4]} 3... Nxd5 {[%clk
0:02:58.6]} 4. Nf3 {[%clk 0:02:59.3]} 4... Nxc3 {[%clk 0:02:54.7]} 5. bxc3
{[%clk 0:03:00.2]} 5... g6 {[%clk 0:02:53.8]} 6. Bc4 {[%clk 0:03:00.2]} 6... Bg7
{[%clk 0:02:53.9]} 7. O-O {[%clk 0:02:57.3]} 7... O-O {[%clk 0:02:54]} 8. d4
{[%clk 0:02:57.6]} 8... Nd7 {[%clk 0:02:50.7]} 9. Re1 {[%clk 0:02:56.4]} 9... e6
{[%clk 0:02:49]} 10. Rb1 {[%clk 0:02:54.6]} 10... b6 {[%clk 0:02:48.7]} 11. Ba3
{[%clk 0:02:54.1]} 11... Re8 {[%clk 0:02:47.4]} 12. Qe2 {[%clk 0:02:40.4]} 12...
Bb7 {[%clk 0:02:41.1]} 13. Rbd1 {[%clk 0:02:39.7]} 13... Nf6 {[%clk 0:02:37.2]}
14. Bb5 {[%clk 0:02:33.3]} 14... c6 {[%clk 0:02:35.9]} 15. Bd3 {[%clk
0:02:29.8]} 15... Nd5 {[%clk 0:02:31]} 16. Qd2 {[%clk 0:02:27.3]} 16... b5
{[%clk 0:02:21.5]} 17. Bc5 {[%clk 0:02:17.1]} 17... Qc7 {[%clk 0:02:03.2]} 18.
Ne5 {[%clk 0:02:08.4]} 18... Nb6 {[%clk 0:01:53.8]} 19. Rb1 {[%clk 0:01:59.1]}
19... Rad8 {[%clk 0:01:47.6]} 20. f4 {[%clk 0:01:40.3]} 20... a6 {[%clk
0:01:39]} 21. Be4 {[%clk 0:01:13.7]} 21... Na4 {[%clk 0:01:35.1]} 22. Nd3 {[%clk
0:01:00.4]} 22... a5 {[%clk 0:01:20.1]} 23. a3 {[%clk 0:00:51.7]} 23... Ba8
{[%clk 0:01:11.3]} 24. Rb3 {[%clk 0:00:45.8]} 24... f5 {[%clk 0:00:55]} 25. Bf3
{[%clk 0:00:43.7]} 25... Nxc5 {[%clk 0:00:55]} 26. Nxc5 {[%clk 0:00:42.4]} 26...
e5 {[%clk 0:00:55.3]} 27. fxe5 {[%clk 0:00:37.6]} 27... Bxe5 {[%clk 0:00:53.4]}
28. h3 {[%clk 0:00:28.9]} 28... Bh2+ {[%clk 0:00:44.3]} 29. Kf1 {[%clk
0:00:27.4]} 29... Bf4 {[%clk 0:00:44.1]} 30. Rxe8+ {[%clk 0:00:19.1]} 30... Rxe8
{[%clk 0:00:43.8]} 31. Qd3 {[%clk 0:00:20]} 31... Qe7 {[%clk 0:00:40.4]} 32. Rb1
{[%clk 0:00:19.2]} 32... Bg3 {[%clk 0:00:38.3]} 33. Bd5+ {[%clk 0:00:18.8]}
33... cxd5 {[%clk 0:00:35.9]} 34. Qxg3 {[%clk 0:00:19.7]} 34... Qe2+ {[%clk
0:00:35.8]} 35. Kg1 {[%clk 0:00:19.7]} 35... Qxc2 {[%clk 0:00:36.5]} 36. Qd3
{[%clk 0:00:20.1]} 36... Qxd3 {[%clk 0:00:32.9]} 37. Nxd3 {[%clk 0:00:21]} 37...
Re3 {[%clk 0:00:32.9]} 38. Nf4 {[%clk 0:00:20]} 38... Bc6 {[%clk 0:00:31.2]} 39.
Rc1 {[%clk 0:00:18.1]} 39... g5 {[%clk 0:00:22.4]} 40. Nh5 {[%clk 0:00:15.7]}
40... Kf7 {[%clk 0:00:22.2]} 41. Kf2 {[%clk 0:00:15.4]} 41... f4 {[%clk
0:00:21.8]} 42. g3 {[%clk 0:00:15.5]} 42... Kg6 {[%clk 0:00:19]} 43. gxf4 {[%clk
0:00:15.8]} 43... Rxh3 {[%clk 0:00:19.6]} 44. Ng3 {[%clk 0:00:15.4]} 44... gxf4
{[%clk 0:00:19.9]} 45. Ne2 {[%clk 0:00:15.7]} 45... Kf5 {[%clk 0:00:19.4]} 46.
Kg2 {[%clk 0:00:15.4]} 46... Re3 {[%clk 0:00:18.8]} 47. Kf2 {[%clk 0:00:15.8]}
47... Be8 {[%clk 0:00:19]} 48. Rh1 {[%clk 0:00:14.4]} 48... h5 {[%clk
0:00:19.2]} 49. Ng1 {[%clk 0:00:13.9]} 49... Rd3 {[%clk 0:00:19.4]} 50. Rh3
{[%clk 0:00:12.8]} 50... Rxh3 {[%clk 0:00:17.2]} 51. Nxh3 {[%clk 0:00:13.7]}
51... Kg4 {[%clk 0:00:17.7]} 52. Ng1 {[%clk 0:00:13.9]} 52... h4 {[%clk
0:00:17.6]} 53. Nf3 {[%clk 0:00:14.8]} 53... h3 {[%clk 0:00:17.9]} 54. Ne5+
{[%clk 0:00:15.1]} 54... Kf5 {[%clk 0:00:18.2]} 55. Nf3 {[%clk 0:00:13.6]} 55...
Ke4 {[%clk 0:00:18]} 56. Ng5+ {[%clk 0:00:13.9]} 56... Kd3 {[%clk 0:00:18.3]}
57. Nxh3 {[%clk 0:00:13.8]} 57... Kxc3 {[%clk 0:00:18.5]} 58. Nxf4 {[%clk
0:00:13.9]} 58... Kxd4 {[%clk 0:00:19]} 59. Ke2 {[%clk 0:00:14.2]} 59... b4
{[%clk 0:00:19.1]} 60. axb4 {[%clk 0:00:12.7]} 60... axb4 {[%clk 0:00:20]} 61.
Kd2 {[%clk 0:00:13.1]} 61... Bd7 {[%clk 0:00:17.9]} 62. Ne2+ {[%clk 0:00:12.8]}
62... Kc4 {[%clk 0:00:17.6]} 63. Nc1 {[%clk 0:00:12.9]} 63... d4 {[%clk
0:00:17.7]} 64. Kc2 {[%clk 0:00:12]} 64... Bf5+ {[%clk 0:00:17.8]} 65. Kb2
{[%clk 0:00:11.9]} 65... d3 {[%clk 0:00:18]} 66. Nb3 {[%clk 0:00:12.6]} 66...
Kd5 {[%clk 0:00:14.5]} 67. Nd2 {[%clk 0:00:13.5]} 67... Kd4 {[%clk 0:00:14.6]}
68. Kb3 {[%clk 0:00:13.5]} 68... Ke3 {[%clk 0:00:14.9]} 69. Nb1 {[%clk
0:00:12.9]} 69... Be6+ {[%clk 0:00:11.5]} 70. Kxb4 {[%clk 0:00:12.9]} 70... Ba2
{[%clk 0:00:12.1]} 71. Nc3 {[%clk 0:00:11.4]} 71... d2 {[%clk 0:00:12.7]} 72.
Nd1+ {[%clk 0:00:11.4]} 72... Kd3 {[%clk 0:00:12]} 73. Nb2+ {[%clk 0:00:12.3]}
73... Kc2 {[%clk 0:00:12.1]} 74. Ka3 {[%clk 0:00:11.5]} 74... Be6 {[%clk
0:00:12]} 75. Nc4 {[%clk 0:00:10.7]} 75... Bxc4 {[%clk 0:00:10.9]} 76. Kb4
{[%clk 0:00:10.9]} 76... d1=Q {[%clk 0:00:11.5]} 77. Kc5 {[%clk 0:00:10.4]}
77... Qd3 {[%clk 0:00:11.9]} 0-1

[Event "*** Titled Tuesday Blitz"]
[Site "Chess.com"]
[Date "2020.05.05"]
[Round "7"]
[White "SCIM"]
[Black "Angel_Hranitel_37"]
[Result "1-0"]
[WhiteElo "2531"]
[BlackElo "2374"]
[TimeControl "180+1"]
[EndTime "11:20:23 PDT"]
[Termination "SCIM won by checkmate"]

1. d4 {[%clk 0:03:00.9]} 1... Nf6 {[%clk 0:02:56.6]} 2. c4 {[%clk 0:03:01.1]}
2... g6 {[%clk 0:02:56.7]} 3. Nc3 {[%clk 0:03:00.6]} 3... Bg7 {[%clk 0:02:57.1]}
4. e4 {[%clk 0:03:00.2]} 4... d6 {[%clk 0:02:57.7]} 5. f3 {[%clk 0:03:00.6]}
5... O-O {[%clk 0:02:57.2]} 6. Bg5 {[%clk 0:03:01.2]} 6... h6 {[%clk 0:02:54.7]}
7. Be3 {[%clk 0:03:00.6]} 7... c5 {[%clk 0:02:49.4]} 8. d5 {[%clk 0:03:00.5]}
8... a6 {[%clk 0:02:48]} 9. Qd2 {[%clk 0:03:00.5]} 9... Kh7 {[%clk 0:02:48.2]}
10. Bd3 {[%clk 0:02:52.6]} 10... e6 {[%clk 0:02:47.7]} 11. Rc1 {[%clk
0:02:48.8]} 11... exd5 {[%clk 0:02:47.6]} 12. cxd5 {[%clk 0:02:49.7]} 12... b5
{[%clk 0:02:47]} 13. b3 {[%clk 0:02:50.3]} 13... Bb7 {[%clk 0:02:44.7]} 14. Nge2
{[%clk 0:02:48.5]} 14... Nbd7 {[%clk 0:02:44.8]} 15. O-O {[%clk 0:02:47.5]}
15... Ne5 {[%clk 0:02:42.7]} 16. Bb1 {[%clk 0:02:48]} 16... c4 {[%clk
0:02:35.8]} 17. b4 {[%clk 0:02:46.1]} 17... Re8 {[%clk 0:02:31.1]} 18. Nd4
{[%clk 0:02:40.3]} 18... Rc8 {[%clk 0:02:14.8]} 19. h3 {[%clk 0:02:37]} 19...
Qe7 {[%clk 0:02:01.9]} 20. Rce1 {[%clk 0:02:31.2]} 20... Nh5 {[%clk 0:01:50.5]}
21. f4 {[%clk 0:02:25.5]} 21... Nd3 {[%clk 0:01:50.7]} 22. Bxd3 {[%clk
0:01:58.1]} 22... cxd3 {[%clk 0:01:51.6]} 23. Rf3 {[%clk 0:01:48.7]} 23... Rxc3
{[%clk 0:01:23.1]} 24. Qxc3 {[%clk 0:01:47.2]} 24... Qxe4 {[%clk 0:01:23.4]} 25.
Bf2 {[%clk 0:00:48]} 25... Bxd4 {[%clk 0:00:51.3]} 26. Rxe4 {[%clk 0:00:46.8]}
26... Bxc3 {[%clk 0:00:45.8]} 27. Rxe8 {[%clk 0:00:45.7]} 27... Nxf4 {[%clk
0:00:36.4]} 28. Rxf4 {[%clk 0:00:28.9]} 28... d2 {[%clk 0:00:36.8]} 29. Rxf7+
{[%clk 0:00:17.4]} 29... Bg7 {[%clk 0:00:36.8]} 30. Ree7 {[%clk 0:00:08.7]}
30... d1=Q+ {[%clk 0:00:35.5]} 31. Kh2 {[%clk 0:00:07.9]} 31... Bxd5 {[%clk
0:00:20]} 32. Rxg7+ {[%clk 0:00:07.7]} 32... Kh8 {[%clk 0:00:20.7]} 33. Rh7+
{[%clk 0:00:07.6]} 33... Kg8 {[%clk 0:00:20.7]} 34. Reg7+ {[%clk 0:00:07.6]}
34... Kf8 {[%clk 0:00:21.3]} 35. Ra7 {[%clk 0:00:05.1]} 35... Kg8 {[%clk
0:00:10.2]} 36. Rag7+ {[%clk 0:00:05.7]} 36... Kf8 {[%clk 0:00:10.4]} 37. Rc7
{[%clk 0:00:06.4]} 37... Kg8 {[%clk 0:00:06.3]} 38. Rhd7 {[%clk 0:00:06]} 38...
Bf7 {[%clk 0:00:04.1]} 39. Rxf7 {[%clk 0:00:04.5]} 39... Qe2 {[%clk 0:00:05]}
40. Rg7+ {[%clk 0:00:04.5]} 40... Kf8 {[%clk 0:00:05]} 41. Rcf7+ {[%clk
0:00:04.9]} 41... Ke8 {[%clk 0:00:05]} 42. Re7+ {[%clk 0:00:05.3]} 42... Qxe7
{[%clk 0:00:05.9]} 43. Rxe7+ {[%clk 0:00:06]} 43... Kxe7 {[%clk 0:00:06.8]} 44.
Kg3 {[%clk 0:00:06.5]} 44... Ke6 {[%clk 0:00:06.9]} 45. Kf4 {[%clk 0:00:07]}
45... g5+ {[%clk 0:00:06.8]} 46. Ke4 {[%clk 0:00:07]} 46... h5 {[%clk
0:00:06.2]} 47. g4 {[%clk 0:00:07.1]} 47... hxg4 {[%clk 0:00:06.3]} 48. hxg4
{[%clk 0:00:08]} 48... a5 {[%clk 0:00:07.2]} 49. bxa5 {[%clk 0:00:07.6]} 49...
d5+ {[%clk 0:00:07.9]} 50. Kd4 {[%clk 0:00:07.4]} 50... Kd6 {[%clk 0:00:08.8]}
51. a6 {[%clk 0:00:07.6]} 51... b4 {[%clk 0:00:09.7]} 52. a7 {[%clk 0:00:08.4]}
52... Kc6 {[%clk 0:00:10.6]} 53. a8=Q+ {[%clk 0:00:08.5]} 53... Kb5 {[%clk
0:00:11.5]} 54. Qb7+ {[%clk 0:00:08.4]} 54... Ka5 {[%clk 0:00:11.7]} 55. Qxd5+
{[%clk 0:00:09.3]} 55... Ka4 {[%clk 0:00:11.7]} 56. Qb3+ {[%clk 0:00:09.4]}
56... Ka5 {[%clk 0:00:12.3]} 57. Qd3 {[%clk 0:00:09.6]} 57... b3 {[%clk
0:00:12.4]} 58. Be1+ {[%clk 0:00:09.6]} 58... Kb6 {[%clk 0:00:11.8]} 59. Qxb3+
{[%clk 0:00:09.7]} 59... Kc6 {[%clk 0:00:12.2]} 60. Qd5+ {[%clk 0:00:09.7]}
60... Kb6 {[%clk 0:00:12.5]} 61. Qc5+ {[%clk 0:00:10.2]} 61... Ka6 {[%clk
0:00:13.1]} 62. Qd6+ {[%clk 0:00:10.4]} 62... Kb7 {[%clk 0:00:14]} 63. Qd5+
{[%clk 0:00:10.6]} 63... Ka6 {[%clk 0:00:14.7]} 64. Qxg5 {[%clk 0:00:10.6]}
64... Kb6 {[%clk 0:00:15.6]} 65. Qc5+ {[%clk 0:00:10.5]} 65... Kb7 {[%clk
0:00:16.5]} 66. Qb5+ {[%clk 0:00:10.5]} 66... Ka7 {[%clk 0:00:17]} 67. Qc6
{[%clk 0:00:09.5]} 67... Kb8 {[%clk 0:00:17.3]} 68. Qd7 {[%clk 0:00:09.7]} 68...
Ka8 {[%clk 0:00:17.9]} 69. Kc5 {[%clk 0:00:10.3]} 69... Kb8 {[%clk 0:00:18.8]}
70. Kb6 {[%clk 0:00:10.8]} 70... Ka8 {[%clk 0:00:19.7]} 71. g5 {[%clk
0:00:10.9]} 71... Kb8 {[%clk 0:00:19.4]} 72. g6 {[%clk 0:00:11.8]} 72... Ka8
{[%clk 0:00:20.3]} 73. g7 {[%clk 0:00:12.2]} 73... Kb8 {[%clk 0:00:21.2]} 74.
Qc7+ {[%clk 0:00:12.1]} 74... Ka8 {[%clk 0:00:22.1]} 75. Qb7# {[%clk 0:00:12.7]}
1-0